[Event "Gibraltar Amateurs B 2019"]
[Site "Caleta"]
[Date "2019.01.27"]
[Round "2"]
[White "Garcia-Blazquez Perez, Manuel"]
[Black "Deus, Pedro"]
[Result "0-1"]
[ECO "C45"]
[WhiteElo "1849"]
[BlackElo "1729"]
[Annotator "NA"]
[PlyCount "122"]
[EventDate "2019.01.18"]
[EventType "swiss"]
[EventCountry "GGB"]
[SourceTitle "playchess.com"]
[Source "ChessBase"]
[SourceQuality "1"]
[TimeControl "6600+10"]

1. e4 {[%emt 0:00:00]} e5 {[%emt 0:00:00]} 2. Nf3 {[%emt 0:00:00]} Nc6 {[%emt 0:00:00]} 3. d4 {[%emt 0:00:00]} exd4 {[%emt 0:00:17]} 4. Nxd4 {[%emt 0:00:05]} Qh4 {[%emt 0:00:21] LiveBook: 232 Games} (4... Nf6 $11) 5. Nc3 {[%emt 0:10:29]} Bb4 {[%emt 0:00:21]} 6. Qd3 {[%emt 0:03:00]} (6. Be2 $1 $14) 6... Nxd4 {[%emt 0:05:27] C45: Scotch Game} 7. Qxd4 {[%emt 0:00:08]} Bxc3+ {[%emt 0:00:26]} 8. Qxc3 {[%emt 0:10:00]} Qxe4+ {[%emt 0:02:05]} 9. Be3 {[%emt 0:00:12]} Nf6 {[%emt 0:01:15]} 10. Qxc7 $146 {[%emt 0:09:36]} ({Predecessor:} 10. O-O-O c6 11. Rd4 Qe6 12. Bc4 d5 13. Bb3 O-O 14. f3 {0-1 (22) Hammel,J (1717)-Braggaar,P (1902) Leiden 2017}) 10... Nd5 {[%emt 0:24:48]} 11. Qc5 {[%emt 0:05:07]} Nxe3 {[%emt 0:11:42]} 12. fxe3 {[%emt 0:00:34]} b6 {[%emt 0:08:03]} 13. Qd4 {[%emt 0:30:03]} Qxd4 {[%emt 0:00:08]} 14. exd4 {[%emt 0:00:06]} Bb7 {[%emt 0:00:12]} 15. Kf2 {[%emt 0:01:00]} Be4 {[%emt 0:06:21]} 16. Re1 {[%emt 0:01:35]} d5 {[%emt 0:03:56]} 17. Bd3 {[%emt 0:01:08]} f5 {[%emt 0:01:29]} 18. c4 {[%emt 0:04:24]} Kd7 {[%emt 0:03:08]} 19. Bxe4 {[%emt 0:00:52]} fxe4 {[%emt 0:01:21]} 20. cxd5 {[%emt 0:00:40]} Rhe8 {[%emt 0:04:44]} 21. Ke3 {[%emt 0:01:34]} Kd6 {[%emt 0:01:10]} 22. Rc1 {[%emt 0:00:04]} Re7 {[%emt 0:12:39]} 23. Rhf1 {[%emt 0:11:19]} g6 {[%emt 0:03:14]} 24. b4 {[%emt 0:00:12]} Rd8 {[%emt 0:02:45]} 25. b5 {[%emt 0:04:33]} Kxd5 {[%emt 0:01:48]} 26. Rc6 {[%emt 0:00:14]} Rd6 {[%emt 0:01:56]} 27. Rfc1 {[%emt 0:04:38]} Rxc6 $1 {[%emt 0:01:07]} 28. Rxc6 {[%emt 0:00:06]} Rf7 {[%emt 0:00:25]} 29. Rc8 {[%emt 0:00:33]} Rf1 {[%emt 0:00:36]} 30. Rd8+ {[%emt 0:00:59]} Kc4 {[%emt 0:01:03]} 31. Kxe4 {[%emt 0:01:50]} Re1+ {[%emt 0:00:10]} 32. Kf3 {[%emt 0:00:19]} Kxb5 {[%emt 0:01:49]} 33. Rd7 {[%emt 0:00:09]} Kc4 {[%emt 0:03:21]} 34. Rxa7 {[%emt 0:00:13]} h5 {[%emt 0:00:40]} 35. Rg7 {[%emt 0:01:29]} Re6 {[%emt 0:00:09]} 36. Rd7 {[%emt 0:02:40]} b5 {[%emt 0:00:06]} 37. Kf4 {[%emt 0:00:53]} ({White should play} 37. d5 $14 Re1 38. d6) 37... Re2 {[%emt 0:00:37]} 38. Kf3 {[%emt 0:00:25]} Rxa2 {[%emt 0:00:10]} 39. Rd6 {[%emt 0:00:15]} b4 {[%emt 0:00:52]} 40. Rxg6 {[%emt 0:00:04] [#]} b3 $1 {[%emt 0:00:23]} 41. Rb6 {[%emt 0:00:51]} Ra1 {[%emt 0:01:43]} 42. d5 {[%emt 0:00:20]} Rd1 {[%emt 0:00:21]} 43. Ke4 {[%emt 0:00:36]} Kc3 {[%emt 0:00:33]} 44. h3 {[%emt 0:00:25]} b2 {[%emt 0:00:03]} 45. g4 {[%emt 0:01:23]} h4 {[%emt 0:00:12]} 46. Ke5 {[%emt 0:00:16]} b1=Q {[%emt 0:00:04]} 47. Rxb1 {[%emt 0:00:03]} Rxb1 {[%emt 0:00:04]} 48. d6 {[%emt 0:00:00]} Kc4 {[%emt 0:00:07]} 49. d7 {[%emt 0:00:12]} Rd1 {[%emt 0:00:50]} 50. Ke6 {[%emt 0:00:02]} Kc5 {[%emt 0:00:02]} 51. Ke7 {[%emt 0:00:05]} Re1+ $11 {[%emt 0:00:12]} 52. Kf6 {[%emt 0:00:48]} Rd1 {[%emt 0:00:01]} 53. Ke6 {[%emt 0:00:30]} Kc6 {[%emt 0:00:07]} 54. Kf5 {[%emt 0:00:04]} Kxd7 {[%emt 0:00:19]} 55. Kg5 {[%emt 0:00:01]} Ke6 {[%emt 0:00:09]} 56. Kxh4 {[%emt 0:00:02]} Kf6 {[%emt 0:00:03]} 57. Kh5 {[%emt 0:00:03]} Rd5+ {[%emt 0:00:13]} 58. Kh4 {[%emt 0:00:48]} Kg6 {[%emt 0:00:02]} 59. Kg3 {[%emt 0:00:04]} Rd4 {[%emt 0:00:16]} 60. Kh4 {[%emt 0:00:06]} Rd3 {[%emt 0:00:15]} 61. g5 {[%emt 0:00:14]} Rd4+ {[%emt 0:00:02]} 0-1

[Event "Gibraltar Amateurs B 2019"]
[Site "Caleta"]
[Date "2019.01.27"]
[Round "2"]
[White "Bizcocho Mellado, Gregorio"]
[Black "Pink, Joshua"]
[Result "0-1"]
[ECO "B13"]
[WhiteElo "1771"]
[BlackElo "1890"]
[Annotator "NA"]
[PlyCount "148"]
[EventDate "2019.01.18"]
[EventType "swiss"]
[EventCountry "GGB"]
[SourceTitle "playchess.com"]
[Source "ChessBase"]
[SourceQuality "1"]
[TimeControl "6600+10"]

1. e4 {[%emt 0:00:42]} c6 {[%emt 0:00:03]} 2. d4 {[%emt 0:02:11]} d5 {[%emt 0:00:03]} 3. exd5 {[%emt 0:00:45]} cxd5 {[%emt 0:00:05]} 4. f4 {[%emt 0:01:11] B13: Caro-Kann: Exchange Variation and Panov-Botvinnik Attack} (4. Nf3 Nc6 5. Bb5 e6 6. O-O Bd6 7. c4 Nge7 8. Nc3 O-O 9. c5 Bc7 10. a3 e5 11. Bxc6 Nxc6 12. dxe5 d4 13. Nb5 {½-½ (60) Karjakin,S (2753)-Mamedyarov,S (2817) St Petersburg 2018}) 4... Nc6 {[%emt 0:00:10]} 5. Nf3 {[%emt 0:02:13]} Bg4 {[%emt 0:02:08]} 6. c3 {[%emt 0:01:55]} e6 {[%emt 0:00:11]} 7. Bd3 {[%emt 0:01:34]} Bd6 {[%emt 0:01:06]} 8. O-O {[%emt 0:04:13]} Nge7 $146 {[%emt 0:01:06]} ({Predecessor:} 8... Qc7 9. Qd2 Nge7 10. Ne5 Bf5 11. Qe2 Bxd3 12. Nxd3 Qd7 {0-1 (35) Savic,S-Sergijevic,Z (2096) Belgrade 2017}) 9. Qe1 {[%emt 0:06:46]} Bxf3 {[%emt 0:02:28]} 10. Rxf3 {[%emt 0:00:17]} Qc7 {[%emt 0:00:11]} 11. a4 {[%emt 0:08:46]} O-O-O {[%emt 0:13:27]} (11... Na5 $11) 12. Na3 {[%emt 0:02:20]} (12. b4 $16) 12... a6 {[%emt 0:02:59] [#]} 13. b4 $1 {[%emt 0:05:21]} Nb8 {[%emt 0:08:01]} 14. b5 {[%emt 0:05:48]} a5 {[%emt 0:08:18]} 15. b6 {[%emt 0:11:50]} Qd7 {[%emt 0:07:59]} 16. Nb5 {[%emt 0:01:40]} Nbc6 {[%emt 0:00:53]} 17. Nxd6+ {[%emt 0:00:29]} Qxd6 {[%emt 0:00:23]} 18. Ba3 {[%emt 0:01:53]} Qd7 {[%emt 0:03:46]} 19. Bb5 {[%emt 0:01:54]} Nf5 {[%emt 0:01:25]} 20. Bc5 {[%emt 0:08:48]} Nd6 {[%emt 0:02:17]} 21. Rc1 {[%emt 0:12:13]} h6 {[%emt 0:07:45]} 22. c4 {[%emt 0:03:34]} Nxc4 {[%emt 0:01:00]} 23. Bxc4 {[%emt 0:00:26]} (23. f5 $16) 23... dxc4 {[%emt 0:00:05]} 24. Rxc4 {[%emt 0:01:00]} Qd5 {[%emt 0:00:36]} 25. Rfc3 {[%emt 0:02:16]} Kd7 {[%emt 0:00:39]} 26. Qg3 {[%emt 0:01:55]} Qf5 {[%emt 0:04:15]} 27. Rc1 {[%emt 0:03:30]} Rhg8 {[%emt 0:01:59]} 28. Ba3 {[%emt 0:01:44]} g5 {[%emt 0:02:28]} 29. fxg5 {[%emt 0:06:31]} Qxg5 {[%emt 0:02:33]} 30. Qc7+ {[%emt 0:00:23]} Ke8 {[%emt 0:00:14]} 31. g3 $2 {[%emt 0:10:03]} (31. R4c2 $11 {and White stays safe.} Rd7 32. Qc8+ Nd8 33. Bc5) 31... Qe3+ {[%emt 0:02:45]} 32. Kh1 {[%emt 0:00:00]} Qxa3 {[%emt 0:01:31]} 33. Qxb7 {[%emt 0:00:00]} Qf3+ {[%emt 0:01:36]} 34. Kg1 {[%emt 0:00:00]} Nxd4 {[%emt 0:07:35]} 35. Qxf3 {[%emt 0:00:00]} Nxf3+ {[%emt 0:00:27]} 36. Kf2 {[%emt 0:00:00]} Ne5 {[%emt 0:00:18]} 37. Rc8 {[%emt 0:00:00]} Nd3+ {[%emt 0:05:11]} 38. Ke3 {[%emt 0:00:12]} Nxc1 {[%emt 0:00:26]} 39. b7 {[%emt 0:00:45]} Kd7 {[%emt 0:00:20]} 40. b8=Q {[%emt 0:00:17]} Rxc8 {[%emt 0:00:05]} 41. Qb7+ {[%emt 0:00:10]} Rc7 {[%emt 0:01:03]} 42. Qb5+ {[%emt 0:00:03]} Ke7 {[%emt 0:00:33]} 43. Qxa5 {[%emt 0:00:22]} Rgc8 {[%emt 0:00:12]} 44. Qb4+ {[%emt 0:00:07]} Ke8 {[%emt 0:00:53]} 45. Qb5+ {[%emt 0:00:17]} Kd8 {[%emt 0:00:19]} 46. Qb6 {[%emt 0:00:13] [#]} Nb3 $1 {[%emt 0:01:14]} 47. a5 {[%emt 0:00:14]} Ke8 {[%emt 0:02:19]} 48. Qb5+ {[%emt 0:00:06]} Kf8 {[%emt 0:00:16]} 49. Qb4+ {[%emt 0:00:10]} Kg8 {[%emt 0:00:19]} 50. Qg4+ {[%emt 0:00:08]} Kh8 {[%emt 0:00:14]} 51. Kf2 {[%emt 0:00:36]} Rc2+ {[%emt 0:00:13]} 52. Kg1 {[%emt 0:00:26]} Nxa5 {[%emt 0:02:02]} (52... Rd2 $142 53. Qh3 Rc1+ 54. Qf1 Rxf1+ 55. Kxf1 Nxa5 56. g4 Nc4 57. h3 f5 58. gxf5 exf5 59. Ke1 f4 60. Kf1 f3 61. Kg1 Ne3 62. Kh1 f2 63. Kh2 f1=Q+ 64. Kg3 Qf2#) 53. Qh5 {[%emt 0:00:07]} Nb7 $2 {[%emt 0:01:32]} (53... Kg8 54. Qxa5 Rb2) 54. Qxh6+ {[%emt 0:00:02]} (54. Qxf7 $142 R8c7 55. Qg6) 54... Kg8 {[%emt 0:00:04]} 55. Qg5+ {[%emt 0:00:03]} Kf8 {[%emt 0:00:13]} 56. Qh6+ {[%emt 0:00:03]} Ke8 {[%emt 0:00:13]} 57. Qh8+ {[%emt 0:00:17]} Kd7 {[%emt 0:00:08]} 58. Qd4+ {[%emt 0:00:04]} Nd6 {[%emt 0:00:06]} 59. Qa7+ {[%emt 0:00:09]} R8c7 {[%emt 0:00:05]} 60. Qa4+ {[%emt 0:00:02]} Ke7 {[%emt 0:00:31]} 61. Qh4+ {[%emt 0:00:05]} f6 {[%emt 0:00:14]} 62. Qh7+ {[%emt 0:00:10]} Nf7 {[%emt 0:00:02]} 63. Qd3 {[%emt 0:00:19]} R2c3 {[%emt 0:00:25]} 64. Qd4 {[%emt 0:00:13]} e5 {[%emt 0:00:27]} 65. Qb4+ {[%emt 0:00:02]} Nd6 {[%emt 0:00:08]} 66. Qh4 {[%emt 0:00:33]} R7c4 {[%emt 0:00:38]} 67. Qh7+ {[%emt 0:00:07]} Nf7 {[%emt 0:00:02]} 68. Qg8 {[%emt 0:00:24]} Rc2 {[%emt 0:00:28]} 69. Qa8 {[%emt 0:00:07]} e4 {[%emt 0:00:45]} 70. Qa7+ {[%emt 0:00:05]} Kf8 {[%emt 0:00:12]} 71. Qa3+ {[%emt 0:00:19]} Kg7 {[%emt 0:00:10]} 72. Qa8 {[%emt 0:00:11]} e3 {[%emt 0:00:25]} 73. Qa5 {[%emt 0:00:17]} Rc1+ {[%emt 0:00:32]} 74. Kg2 {[%emt 0:00:04]} e2 {[%emt 0:00:22]} 0-1

[Event "Gibraltar Amateurs B 2019"]
[Site "Caleta"]
[Date "2019.01.27"]
[Round "2"]
[White "Poggio, Freddie"]
[Black "Lochte, Szilvia"]
[Result "1/2-1/2"]
[ECO "B18"]
[WhiteElo "1765"]
[BlackElo "1868"]
[Annotator "NA"]
[PlyCount "43"]
[EventDate "2019.01.18"]
[EventType "swiss"]
[EventCountry "GGB"]
[SourceTitle "playchess.com"]
[Source "ChessBase"]
[SourceQuality "1"]
[TimeControl "6600+10"]

1. d4 {[%emt 0:00:11]} d5 {[%emt 0:00:00]} 2. Nf3 {[%emt 0:00:17]} Nf6 {[%emt 0:00:06]} 3. e3 {[%emt 0:00:53]} Bf5 {[%emt 0:00:28]} 4. Bd3 {[%emt 0:00:36]} Bxd3 {[%emt 0:00:17]} 5. Qxd3 {[%emt 0:00:14] LiveBook: 38 Games} c6 {[%emt 0:00:37]} 6. O-O {[%emt 0:00:39]} e6 {[%emt 0:01:30]} 7. Re1 {[%emt 0:01:39]} Be7 {[%emt 0:02:18]} 8. Nbd2 {[%emt 0:01:24]} Nbd7 {[%emt 0:05:56]} 9. e4 {[%emt 0:05:43]} dxe4 {[%emt 0:01:51]} 10. Nxe4 {[%emt 0:00:44]} Nxe4 {[%emt 0:03:06] B18: Classical Caro-Kann: 4...Bf5 sidelines} (10... O-O 11. Nxf6+ Nxf6 12. Bg5 c5 13. Qb3 h6 14. Bh4 cxd4 15. Qxb7 Bc5 16. Ne5 Qd5 17. Qa6 Rab8 18. b3 Bb4 19. Re2 Nh5 20. Nf3 Qf5 21. Bg3 Nxg3 22. hxg3 Bc3 23. Rd1 Qc5 {½-½ (24) Boscolo,F (2300)-Dvirnyy,D (2515) Forni di Sopra 2012}) 11. Rxe4 {[%emt 0:02:17]} Nf6 {[%emt 0:05:55]} 12. Re2 {[%emt 0:02:21]} O-O {[%emt 0:04:25]} 13. Be3 $146 {[%emt 0:04:30]} ({Predecessor:} 13. Bf4 Nd5 14. Bg3 Bf6 15. Qe4 Qb6 16. c3 c5 17. Be5 cxd4 18. Bxd4 Bxd4 19. Qxd4 Qxd4 20. Nxd4 {0-1 (41) Cisler,M (1831)-Klecker,T (1899) Czechia 2006}) 13... Qc7 {[%emt 0:07:21]} 14. h3 {[%emt 0:07:37]} h6 {[%emt 0:04:09]} 15. Rae1 {[%emt 0:04:23]} Rfd8 {[%emt 0:07:54]} 16. Qb3 {[%emt 0:07:10]} Nd5 {[%emt 0:04:31]} 17. Bd2 {[%emt 0:00:23]} a5 {[%emt 0:08:07]} 18. c3 {[%emt 0:00:25]} a4 {[%emt 0:02:27]} 19. Qc2 {[%emt 0:00:57]} Bd6 {[%emt 0:06:53]} 20. a3 {[%emt 0:12:32]} b5 $11 {[%emt 0:07:47]} 21. Bc1 {[%emt 0:10:59]} Nb6 {[%emt 0:08:19]} 22. Qd1 {[%emt 0:00:51]} 1/2-1/2

[Event "Gibraltar Amateurs B 2019"]
[Site "Caleta"]
[Date "2019.01.27"]
[Round "2"]
[White "Salas Martin, Javier"]
[Black "Robson, Paul E"]
[Result "0-1"]
[ECO "A57"]
[WhiteElo "1749"]
[BlackElo "1861"]
[Annotator "NA"]
[PlyCount "80"]
[EventDate "2019.01.18"]
[EventType "swiss"]
[EventCountry "GGB"]
[SourceTitle "playchess.com"]
[Source "ChessBase"]
[SourceQuality "1"]
[TimeControl "6600+10"]

1. d4 {[%emt 0:00:00]} Nf6 {[%emt 0:00:04]} 2. c4 {[%emt 0:00:09]} c5 {[%emt 0:00:41]} 3. d5 {[%emt 0:00:09]} b5 {[%emt 0:00:06]} 4. Qc2 {[%emt 0:01:17]} bxc4 {[%emt 0:00:27]} 5. Nc3 {[%emt 0:00:09]} d6 {[%emt 0:00:18]} 6. e4 {[%emt 0:00:29]} g6 {[%emt 0:00:32]} 7. Bxc4 {[%emt 0:00:12]} Bg7 {[%emt 0:00:09] LiveBook: 23 Games} 8. h3 {[%emt 0:05:09]} O-O {[%emt 0:01:12]} 9. Nf3 {[%emt 0:00:07]} Nbd7 {[%emt 0:07:06]} 10. O-O {[%emt 0:00:53]} Nb6 {[%emt 0:05:23] A57: Benko/Volga Gambit} (10... Rb8 11. Re1 Nh5 12. Be2 Ne5 13. Nxe5 Bxe5 14. Bxh5 gxh5 15. Bh6 Re8 16. Qd2 Kh8 17. Bf4 Bd4 18. Be3 {0-1 (63) Dreev,A (2644)-Perunovic,M (2622) Berlin 2015}) 11. Be2 {[%emt 0:01:29]} Ne8 {[%emt 0:01:15]} 12. Bf4 {[%emt 0:09:52]} Nc7 {[%emt 0:01:21]} 13. Rad1 {[%emt 0:07:44]} Bb7 {[%emt 0:01:14] [#]} 14. Bg5 $146 {[%emt 0:21:10]} ({Predecessor:} 14. a4 Na6 15. Bxa6 Bxa6 16. Rfe1 Nc4 17. b3 Na5 18. e5 {1-0 (26) Cvitan,O (2503)-Bozinovic,B (2237) Zagreb 2018}) 14... h6 {[%emt 0:05:04]} 15. Be3 {[%emt 0:10:29]} Kh7 {[%emt 0:05:42]} 16. Rfe1 {[%emt 0:10:34]} Rb8 {[%emt 0:03:36]} 17. h4 {[%emt 0:05:47]} Ba6 {[%emt 0:02:43]} 18. e5 {[%emt 0:06:57]} Bxe2 {[%emt 0:00:58]} 19. Rxe2 {[%emt 0:00:34]} Nc4 {[%emt 0:01:40]} 20. Bc1 {[%emt 0:00:22]} Qd7 {[%emt 0:12:34]} 21. exd6 {[%emt 0:04:00]} exd6 {[%emt 0:07:51]} 22. b3 {[%emt 0:01:46]} Nb6 {[%emt 0:03:41]} 23. h5 {[%emt 0:01:29]} Rbe8 {[%emt 0:03:15]} 24. hxg6+ {[%emt 0:00:41]} fxg6 {[%emt 0:00:17]} 25. Rxe8 {[%emt 0:03:07]} Qxe8 {[%emt 0:07:03]} 26. Ne4 {[%emt 0:01:18]} Nc8 {[%emt 0:02:10]} 27. Re1 {[%emt 0:00:43]} Qd7 {[%emt 0:00:36]} 28. Nh4 {[%emt 0:07:16]} Qg4 {[%emt 0:05:30]} ({Not} 28... Nxd5 $2 {[#]} 29. Nxg6 $1 {[%mdl 512]} Kxg6 30. Nxd6+ Rf5 31. Nxc8 $18 (31. Nxf5 Qxf5 32. Qxc5 Ncb6 $16)) 29. g3 {[%emt 0:00:07]} Nxd5 {[%emt 0:05:10]} 30. Nxc5 {[%emt 0:05:26]} dxc5 {[%emt 0:01:40]} 31. Qxc5 {[%emt 0:00:34]} Qd4 {[%emt 0:10:46]} 32. Qc2 {[%emt 0:00:22]} Nce7 {[%emt 0:00:08]} 33. Ba3 {[%emt 0:00:57]} Rc8 {[%emt 0:01:30]} 34. Qb1 {[%emt 0:00:26]} Rf8 {[%emt 0:04:21]} 35. Qc2 {[%emt 0:00:26]} Qf6 {[%emt 0:00:45]} 36. Bc5 {[%emt 0:02:38]} Rf7 {[%emt 0:04:18]} 37. Bxa7 {[%emt 0:00:22]} Nf5 {[%emt 0:00:02]} 38. Nxf5 {[%emt 0:00:20]} Qxf5 {[%emt 0:00:02]} 39. Qc5 $2 {[%emt 0:00:09]} (39. Qxf5 $17 gxf5 40. Bc5) 39... Nf6 $17 {[%emt 0:00:17]} (39... Qf3 $19 40. Qc2 Rxa7) 40. Qc4 {[%emt 0:00:20]} Rxa7 {[%emt 0:00:13]} 0-1

[Event "Gibraltar Amateurs B 2019"]
[Site "Caleta"]
[Date "2019.01.27"]
[Round "2"]
[White "Kuenitz, Klaus"]
[Black "Johansson, Daniel 1984"]
[Result "1/2-1/2"]
[ECO "D63"]
[WhiteElo "1723"]
[BlackElo "1859"]
[Annotator "NA"]
[PlyCount "119"]
[EventDate "2019.01.18"]
[EventType "swiss"]
[EventCountry "GGB"]
[SourceTitle "playchess.com"]
[Source "ChessBase"]
[SourceQuality "1"]
[TimeControl "6600+10"]

1. d4 {[%emt 0:00:00]} Nf6 {[%emt 0:01:06]} 2. c4 {[%emt 0:00:05]} e6 {[%emt 0:00:32]} 3. Nf3 {[%emt 0:00:20]} d5 {[%emt 0:00:21]} 4. Bg5 {[%emt 0:02:07]} Be7 {[%emt 0:00:27] LiveBook: 1173 Games} 5. e3 {[%emt 0:00:17]} a6 {[%emt 0:03:58]} 6. Nc3 {[%emt 0:01:26]} O-O {[%emt 0:00:14]} 7. cxd5 {[%emt 0:01:51]} exd5 {[%emt 0:00:39]} 8. Rc1 {[%emt 0:02:40]} h6 {[%emt 0:03:03]} 9. Bh4 {[%emt 0:00:06]} Nbd7 {[%emt 0:00:14]} 10. Be2 {[%emt 0:02:05] D63: Queen's Gambit Declined: Classical: 7 Rc1} (10. Bd3 c6 11. Qc2 Ne8 12. Bg3 Bd6 13. Ne5 Ndf6 14. f4 c5 15. Bh4 Qb6 16. Qd2 cxd4 17. exd4 Be6 18. Bf2 Bb4 19. f5 {1-0 (57) Wang,Y (2724)-Zvjaginsev,V (2660) Skopje 2015}) 10... b6 {[%emt 0:02:42]} 11. O-O {[%emt 0:00:40]} Bb7 {[%emt 0:00:17]} 12. Ne5 {[%emt 0:03:19]} Ne8 $146 {[%emt 0:09:05]} ({Predecessor:} 12... Ne4 13. Bxe7 Qxe7 14. Nxe4 Nxe5 15. Ng3 Ng6 16. Bd3 c5 17. dxc5 bxc5 18. Bxg6 fxg6 19. Qc2 {½-½ (28) Khanukov,B (2273)-Etzold,E (2088) Dresden 2018}) 13. Bg3 {[%emt 0:11:40]} Nxe5 {[%emt 0:06:19]} 14. Bxe5 {[%emt 0:00:12]} Bd6 {[%emt 0:04:33]} 15. Bxd6 {[%emt 0:00:59]} Qxd6 {[%emt 0:04:49]} 16. Bf3 {[%emt 0:02:00]} Nf6 {[%emt 0:02:36]} 17. Qd3 {[%emt 0:01:59]} Rfe8 {[%emt 0:01:37]} 18. g3 {[%emt 0:04:19]} Rad8 {[%emt 0:04:58]} 19. Qc2 {[%emt 0:01:33]} g6 {[%emt 0:08:43]} 20. Bg2 {[%emt 0:00:56]} Kg7 {[%emt 0:00:49]} 21. a3 {[%emt 0:05:48]} h5 {[%emt 0:01:47]} 22. Na2 {[%emt 0:01:08]} c6 {[%emt 0:03:10]} 23. Nb4 {[%emt 0:03:05]} a5 {[%emt 0:02:17]} 24. Nd3 {[%emt 0:01:03]} h4 {[%emt 0:08:43]} 25. Ne5 {[%emt 0:05:42]} Nd7 {[%emt 0:01:26]} 26. f4 {[%emt 0:04:18]} hxg3 {[%emt 0:02:25]} 27. hxg3 {[%emt 0:00:07]} f5 {[%emt 0:13:09]} 28. Kf2 {[%emt 0:01:15]} Nxe5 {[%emt 0:01:53]} 29. fxe5 {[%emt 0:00:19]} Qe7 {[%emt 0:03:49]} 30. Rh1 {[%emt 0:03:08]} Qg5 {[%emt 0:06:28]} 31. Rh4 {[%emt 0:01:21]} Rh8 {[%emt 0:01:26]} 32. Rch1 {[%emt 0:00:43]} Rxh4 {[%emt 0:01:09]} 33. Rxh4 {[%emt 0:02:16]} Qe7 {[%emt 0:02:58]} 34. Qc1 $14 {[%emt 0:02:06]} Rh8 {[%emt 0:00:56]} 35. Rxh8 {[%emt 0:00:27]} Kxh8 {[%emt 0:00:06]} 36. Qc3 {[%emt 0:01:52]} Kg7 {[%emt 0:00:46]} 37. b4 {[%emt 0:01:43]} axb4 {[%emt 0:01:31]} 38. Qxb4 {[%emt 0:00:14]} Qc7 {[%emt 0:03:31]} 39. Qb3 {[%emt 0:01:02]} Kf7 {[%emt 0:00:21]} 40. Qd1 {[%emt 0:01:38]} Ke6 {[%emt 0:00:23]} 41. Qh1 {[%emt 0:00:19]} c5 {[%emt 0:00:37]} 42. Qh6 {[%emt 0:00:59]} cxd4 {[%emt 0:00:17]} 43. Qxg6+ {[%emt 0:01:40]} Kxe5 {[%emt 0:00:02]} 44. exd4+ {[%emt 0:00:42]} Kxd4 {[%emt 0:00:02]} 45. Qf6+ {[%emt 0:00:29]} Kc4 {[%emt 0:00:37]} 46. Bf1+ {[%emt 0:01:38]} Kb3 {[%emt 0:00:11]} 47. Qxf5 {[%emt 0:02:16]} Qc5+ {[%emt 0:00:04]} 48. Kf3 {[%emt 0:02:21]} d4+ {[%emt 0:00:05]} 49. Kf4 {[%emt 0:00:06]} Qc1+ {[%emt 0:00:09]} 50. Ke5 {[%emt 0:00:30]} Qe3+ {[%emt 0:00:09]} 51. Kf6 {[%emt 0:01:12]} Qf3 {[%emt 0:00:10]} 52. g4 {[%emt 0:01:01]} Kxa3 {[%emt 0:00:18]} 53. g5 {[%emt 0:00:34]} Qxf5+ {[%emt 0:00:26]} 54. Kxf5 {[%emt 0:00:08]} Kb4 {[%emt 0:00:13]} 55. Ke5 {[%emt 0:00:36]} Kc5 {[%emt 0:00:06]} 56. g6 {[%emt 0:01:00]} Bd5 {[%emt 0:00:11]} 57. g7 {[%emt 0:00:25]} Bg8 {[%emt 0:00:15]} 58. Bd3 {[%emt 0:01:32]} b5 {[%emt 0:00:10]} 59. Bxb5 {[%emt 0:11:17]} Kxb5 {[%emt 0:00:02]} 60. Kxd4 {[%emt 0:00:02]} 1/2-1/2

[Event "Gibraltar Amateurs B 2019"]
[Site "Caleta"]
[Date "2019.01.27"]
[Round "2"]
[White "Towers, Brian"]
[Black "Lane, Ryan"]
[Result "0-1"]
[ECO "D03"]
[WhiteElo "1710"]
[BlackElo "1851"]
[Annotator "NA"]
[PlyCount "84"]
[EventDate "2019.01.18"]
[EventType "swiss"]
[EventCountry "GGB"]
[SourceTitle "playchess.com"]
[Source "ChessBase"]
[SourceQuality "1"]
[TimeControl "6600+10"]

1. d4 {[%emt 0:00:00]} Nf6 {[%emt 0:00:11]} 2. Nf3 {[%emt 0:00:00]} g6 {[%emt 0:00:06]} 3. Bg5 {[%emt 0:00:01]} Bg7 {[%emt 0:00:10]} 4. Nbd2 {[%emt 0:00:13]} d5 {[%emt 0:02:03]} 5. e3 {[%emt 0:01:12] LiveBook: 1394 Games} O-O {[%emt 0:04:08]} 6. Bd3 {[%emt 0:00:18]} c5 {[%emt 0:01:18]} 7. c3 {[%emt 0:00:20]} cxd4 {[%emt 0:00:31]} 8. exd4 {[%emt 0:00:32]} Nc6 {[%emt 0:00:26]} 9. O-O {[%emt 0:00:25]} Bg4 {[%emt 0:01:31] D03: 1 d4 d5 2 Nf3 Nf6 3 Bg5, including Torre Attack with early ...d5} (9... Bf5 10. Bxf5 gxf5 11. Bxf6 Bxf6 12. Qe2 Qd6 13. Rfe1 Bg7 14. Ne5 Rae8 15. Ndf3 e6 16. Rad1 Ne7 17. Qb5 Rb8 {½-½ (29) Rodrigue Lemieux,S (2250)-Tutisani,N (2471) Manavgat 2018}) 10. h3 {[%emt 0:05:52]} Bxf3 {[%emt 0:01:04]} 11. Nxf3 {[%emt 0:00:02]} Qc7 {[%emt 0:00:14]} 12. Re1 {[%emt 0:02:11]} Rfe8 {[%emt 0:00:38]} 13. Qd2 {[%emt 0:00:48]} Nd7 {[%emt 0:03:48]} 14. Bf4 $146 {[%emt 0:00:59]} ({Predecessor:} 14. Bb5) 14... Qb6 {[%emt 0:05:39]} 15. a4 {[%emt 0:06:12]} e5 {[%emt 0:02:11]} 16. dxe5 {[%emt 0:00:56]} Ndxe5 {[%emt 0:00:15]} 17. Nxe5 {[%emt 0:00:12]} Nxe5 {[%emt 0:00:22]} 18. Bb5 {[%emt 0:00:33]} Re7 {[%emt 0:06:36]} 19. Qxd5 {[%emt 0:13:21]} Rd8 {[%emt 0:05:09]} 20. Qa2 {[%emt 0:06:54]} a6 $16 {[%emt 0:01:27]} 21. Bc4 {[%emt 0:08:17]} Kh8 {[%emt 0:05:41]} 22. Bf1 {[%emt 0:10:01]} Rde8 {[%emt 0:02:23]} 23. Be3 {[%emt 0:01:44]} Qc6 {[%emt 0:00:30]} 24. Red1 {[%emt 0:01:17]} Qe4 {[%emt 0:05:58]} 25. Rd4 {[%emt 0:14:19]} Qf5 {[%emt 0:01:26]} 26. Rd2 {[%emt 0:02:25]} Bf6 {[%emt 0:04:37]} 27. Rad1 {[%emt 0:04:11]} Bg5 {[%emt 0:02:50]} 28. Bxg5 {[%emt 0:03:49]} Qxg5 {[%emt 0:00:22]} 29. Rd8 {[%emt 0:00:38]} Rxd8 {[%emt 0:02:21]} 30. Rxd8+ {[%emt 0:00:02]} Kg7 {[%emt 0:00:35]} 31. Qd5 {[%emt 0:01:44]} Re6 {[%emt 0:03:40]} 32. Rb8 {[%emt 0:21:12]} Rf6 {[%emt 0:01:49]} 33. Qd8 {[%emt 0:01:52]} Kh6 {[%emt 0:01:16]} 34. Qf8+ {[%emt 0:00:02]} Kh5 {[%emt 0:00:09]} 35. Be2+ {[%emt 0:00:02]} Nf3+ {[%emt 0:01:23]} 36. Bxf3+ {[%emt 0:00:10]} Rxf3 {[%emt 0:00:16]} 37. g4+ {[%emt 0:02:56]} Kh4 {[%emt 0:00:07]} 38. Qd8 {[%emt 0:00:05]} f6 {[%emt 0:01:44]} 39. Qd4 {[%emt 0:00:21]} Rxh3 {[%emt 0:00:20]} 40. Qd1 {[%emt 0:00:19]} Qf4 {[%emt 0:00:29]} 41. Rxb7 {[%emt 0:00:10]} Qh2+ {[%emt 0:00:41]} 42. Kf1 {[%emt 0:00:00]} Qh1+ {[%emt 0:00:18]} 0-1